Cogmind - Beta 10.2 @@@ ROGUE MODE // 2021.01.14 @ 17:25:45 Player: Demise Result: Destroyed by G-47 Trooper with Particle Gun Performance ------------- Evolutions (1) 500 Regions Visited (6) 1200 Robots Destroyed (101) 505 Value Destroyed (2185) 2185 Prototype IDs (41) 820 Alien Tech Used (0) 0 Bonus (333) 333 TOTAL SCORE: 5543 Bonus ------- Follower Combat Kills 33 Aligned with FarCom 300 Cogmind --------- Core Integrity 0/400 Matter 236/300 Energy 200/200 System Corruption 0% Temperature Cool (9) Movement Treading (200) Ox2 Location -8/Mines Parts ------- > --- POWER (1) -------- Cold Fusion Reactor > --- PROPULSION (2) --- Light Treads Light Treads > --- UTILITY (4) ------ Large Storage Unit Large Storage Unit High-capacity Storage Unit High-capacity Storage Unit > --- WEAPON (2) ------- Light Assault Rifle Heavy Assault Rifle > --- INVENTORY (32) --- Cooled Ion Engine Reinforced Fission Core Light Treads Light Treads Combat Antigrav System High-capacity Matter Pod (200) Gravity Neutralizing Apparatus Improved Signal Interpreter Advanced Launcher Guidance Computer Improved Target Analyzer Advanced Core Analyzer Improved Armor Integrity Analyzer Advanced Weapon Cycler Improved Propulsion Shielding Improved Propulsion Shielding Makeshift Hacking Suite Makeshift Hacking Suite System Shield System Shield System Shield System Shield Advanced Component Analysis Suite System Purifier Trap Reconfigurator Advanced Recalibrator Mini Grenade Launcher Datajack Mining Laser Plasma Cutter Plasma Cutter Deploy-a-Sentry Peak State ------------ > --- POWER ------------ Cold Fusion Reactor > --- PROPULSION ------- Light Treads Light Treads > --- UTILITY ---------- Large Storage Unit Large Storage Unit High-capacity Storage Unit High-capacity Storage Unit > --- WEAPON ----------- Light Assault Rifle Heavy Assault Rifle > --- INVENTORY -------- Cooled Ion Engine Reinforced Fission Core Light Treads Light Treads Combat Antigrav System High-capacity Matter Pod High-capacity Matter Pod Gravity Neutralizing Apparatus Improved Signal Interpreter Advanced Launcher Guidance Computer Improved Target Analyzer Advanced Core Analyzer Improved Armor Integrity Analyzer Advanced Weapon Cycler Improved Propulsion Shielding Improved Propulsion Shielding Makeshift Hacking Suite Makeshift Hacking Suite System Shield System Shield System Shield System Shield Advanced Component Analysis Suite System Purifier Trap Reconfigurator Advanced Recalibrator Mini Grenade Launcher Datajack Mining Laser Plasma Cutter Plasma Cutter Deploy-a-Sentry [Rating: 28] Favorites ----------- Power Cooled Ion Engine Engine Cooled Ion Engine Reactor Cold Fusion Reactor Propulsion Light Treads Treads Light Treads Utility Large Storage Unit Device Advanced Weapon Cycler Storage Large Storage Unit Processor Improved Targeting Computer Hackware Hacking Suite Protection Improved Propulsion Shielding Weapon Heavy Assault Rifle Energy Gun Medium Laser Energy Cannon Advanced Beam Cannon Ballistic Gun Heavy Assault Rifle Launcher Mini Grenade Launcher Special Weapon Plasma Cutter Special Melee Weapon Datajack Build | -11 -10 -10 -9 -9 -9 -8 ------- Run | Scr Mat Min Mat Min Exi Min Slots Evolved 2 | . . . 2 . . . Power . | . . . . . . . Propulsion . | . . . . . . . Utility 2 | . . . 2 . . . Weapon . | . . . . . . . Parts Attached 152 | 8 20 19 61 5 37 2 Power 13 | 1 4 2 4 . 2 . Engine 12 | 1 4 2 4 . 1 . Core . | . . . . . . . Reactor 1 | . . . . . 1 . Propulsion 27 | 2 3 5 14 . 3 . Treads 27 | 2 3 5 14 . 3 . Leg . | . . . . . . . Wheel . | . . . . . . . Hover . | . . . . . . . Flight . | . . . . . . . Utility 35 | 2 5 . 13 1 14 . Device 2 | 1 . . . . 1 . Storage 19 | 1 5 . 4 1 8 . Processor 3 | . . . 2 . 1 . Hackware 1 | . . . 1 . . . Protection 10 | . . . 6 . 4 . Artifact . | . . . . . . . Weapon 77 | 3 8 12 30 4 18 2 Energy Gun 10 | 1 3 3 3 . . . Energy Cannon 1 | . . . 1 . . . Ballistic Gun 42 | 2 4 5 18 2 10 1 Ballistic Cannon . | . . . . . . . Launcher 8 | . . 2 1 2 2 1 Special Weapon 15 | . 1 2 7 . 5 . Impact Weapon . | . . . . . . . Slashing Weapon . | . . . . . . . Piercing Weapon . | . . . . . . . Special Melee Weapon 1 | . . . . . 1 . Unidentified Prototypes 4 | . . . 4 . . . Parts Lost 21 | . 3 5 7 . 6 . Power 4 | . 2 1 1 . . . Propulsion 4 | . . 2 2 . . . Utility 4 | . . . 2 . 2 . Weapon 9 | . 1 2 2 . 4 . Highest Loss Streak 5 | . 1 5 5 . 3 . Average Slot Usage (%) 99 | . 99 99 99 100 99 100 Engine 11 | . 13 14 10 11 9 . Treads 23 | . 27 28 21 22 22 22 Storage 31 | . 27 28 27 43 31 44 Processor 2 | . . . 3 . 4 . Protection 5 | . . . 10 . 5 . Energy Gun 2 | . 10 9 1 . . . Ballistic Gun 15 | . 16 15 14 21 10 11 Special Weapon 3 | . . 1 5 . 6 . Naked Turns . | . . . . . . . Heaviest Build 112 | 11 57 59 96 110 112 . Greatest Support 40 | 40 40 40 40 40 40 . Greatest Overweight (x) 2 | . 2 1 2 2 2 . Average Overweight (x) 1 | . . 1 1 2 1 . Largest Inventory Capacity 32 | 6 18 18 26 32 32 32 Average Capacity 22 | 4 15 18 21 31 23 32 Most Carried 32 | 4 18 18 25 28 32 31 Average Carried 20 | 3 13 17 21 27 21 31 Final Capacity 32 | 6 18 18 26 32 32 32 Final Carried 31 | 4 18 18 25 28 31 31 Class Distribution -------------------- 51% | Hauler-Mutant 26% | Mutant 21% | Scavenger-Mutant Dominant Class ---------------- Mutant | -10/Materials Mutant | -10/Mines Hauler-Mutant | -9/Materials Hauler-Mutant | -9/Mines Hauler-Mutant | -9/Exiles Hauler-Mutant | -8/Mines Resources | -11 -10 -10 -9 -9 -9 -8 ----------- Run | Scr Mat Min Mat Min Exi Min Matter Collected 3663 | 292 565 271 1194 129 1212 . Remotely 176 | 176 . . . . . . Salvage Created 3459 | 106 704 352 1597 116 579 5 Parts 317 | 7 44 33 131 17 85 . Haulers Intercepted 8 | . 2 . 6 . . . Recyclers Shooed 4 | . 4 . . . . . Parts Field Recycled . | . . . . . . . Retrieved Matter . | . . . . . . . Parts Self-Destructed . | . . . . . . . Prevented . | . . . . . . . Kills | -11 -10 -10 -9 -9 -9 -8 ------- Run | Scr Mat Min Mat Min Exi Min Combat Hostiles Destroyed 65 | . 15 12 28 6 3 1 Guns 46 | . 15 4 24 . 2 1 Cannons 2 | . . 2 . . . . AOE 17 | . . 6 4 6 1 . Classes Destroyed 14 | 2 3 3 3 . 3 . Worker 3 | . . . 2 1 . . Builder 1 | . . 1 . . . . Tunneler 5 | 1 . 1 . 3 . . Hauler 8 | . 2 . 6 . . . Recycler 1 | 1 . . . . . . Mechanic 2 | . . . 2 . . . Operator 2 | . . . 2 . . . Turret 1 | . . . . . 1 . Watcher 5 | . 2 . 3 . . . Swarmer 19 | . . 6 7 6 . . Grunt 34 | . 15 4 14 . . 1 Sentry 9 | . . 2 7 . . . Zionite 8 | . . . . . 8 . Assembled 2 | . . . . . 2 . Best Kill Streak 6 | 2 4 4 6 3 3 1 Combat Bots Only 4 | . 4 3 4 3 1 1 Max Kills in Single Turn 4 | 1 1 3 4 3 1 1 Gunslinging . | . . . . . . . Exploded 4 | . . 2 4 3 1 . Melee . | . . . . . . . Uniques/NPCs Destroyed 4 | . . . . . 4 . 8R-AWN (-9/Exiles) EX-DEC (-9/Exiles) EX-BIN (-9/Exiles) EX-HEX (-9/Exiles) Combat | -11 -10 -10 -9 -9 -9 -8 -------- Run | Scr Mat Min Mat Min Exi Min Damage Taken 4756 | . 648 943 1603 51 1316 195 Core 658 | . 111 138 203 9 161 36 Absorbed by Shields . | . . . . . . . Core Remaining (%) 50 | 100 . . . . . . Volleys Fired 366 | 3 63 25 145 12 113 5 Largest 2 | 2 2 2 2 2 2 2 Hottest 100 | 40 100 80 100 53 46 43 Shots Fired 645 | 6 120 41 273 20 179 6 Gun 517 | 6 115 29 230 17 118 2 Cannon . | . . . . . . . Launcher 26 | . . 6 1 3 12 4 Special 102 | . 5 6 42 . 49 . Kinetic 439 | 6 79 . 217 17 118 2 Thermal 149 | . 39 6 55 . 49 . Explosive 26 | . . 6 1 3 12 4 Electromagnetic 31 | . 2 29 . . . . Robot Hit Streak 26 | 4 24 9 26 9 21 2 Robot Miss Streak 6 | 1 2 2 6 3 3 1 Penetration Max . | . . . . . . . Secondary Targets 6 | . 3 1 2 . . . Max Gunslinging Chain 1 | . 1 1 1 . . . Shots Hit Robots 445 | 4 91 25 176 14 133 2 Core Hits 204 | 3 42 24 67 10 51 7 Critical Hits 16 | . 1 1 4 . 10 . Critical Kills 3 | . . 1 1 . 1 . Critical Parts Destroyed 12 | . 1 . 3 . 8 . Melee Attacks 4 | . . . . . 4 . Impact . | . . . . . . . Slashing . | . . . . . . . Piercing . | . . . . . . . Sneak Attacks 4 | . . . . . 4 . Combat Hostiles . | . . . . . . . Follow-up Attacks . | . . . . . . . Damage Inflicted 7220 | 43 1095 753 2671 443 1918 297 Guns 5118 | 43 1095 278 2280 162 1236 24 Cannons . | . . . . . . . Explosions 1436 | . . 443 153 281 286 273 Melee . | . . . . . . . Ramming 14 | . . . 14 . . . Kinetic 4178 | 43 705 . 2008 162 1236 24 Thermal 1299 | . 375 32 496 . 396 . Explosive 1436 | . . 443 153 281 286 273 Electromagnetic 293 | . 15 278 . . . . Impact . | . . . . . . . Slashing . | . . . . . . . Piercing . | . . . . . . . Highest Corruption 2 | . 2 2 . . . . Average Corruption 2 | . 2 2 . . . . Corruption Purged . | . . . . . . . Effects 12 | . 4 8 . . . . Message Errors 3 | . 1 2 . . . . Heat Flow Errors 1 | . . 1 . . . . Energy Discharges 1 | . 1 . . . . . Data Loss (minor) 3 | . . 3 . . . . Targeting Errors 3 | . 1 2 . . . . Weapon Failures 1 | . 1 . . . . . Overload Shots . | . . . . . . . Overflow Damage 36 | . . 6 . . 11 19 Projectiles 11 | . . . . . 11 . Explosions 25 | . . 6 . . . 19 Melee . | . . . . . . . Knockbacks . | . . . . . . . Impact . | . . . . . . . Kinetic . | . . . . . . . Secondary . | . . . . . . . Self-Inflicted Damage 59 | . . 56 . . . 3 Shots 3 | . . 2 . . . 1 Rammed 3 | . . . 3 . . . Targets Rammed 3 | . . . 3 . . . Kicked . | . . . . . . . Crushed . | . . . . . . . Highest Temperature 482 | . 102 482 196 . 10 14 Average Temperature 64 | . 23 193 45 . 7 5 Received Heat Transfer 1524 | . 366 333 717 . . 108 Effects 3 | . . 3 . . . . Shutdowns 2 | . . 2 . . . . Matter Decay 1 | . . 1 . . . . Siege Activations . | . . . . . . . Robots Corrupted . | . . . . . . . Combat Hostiles . | . . . . . . . Parts Fried 2 | . . 2 . . . . Impact Corruptions . | . . . . . . . Robots Melted . | . . . . . . . Combat Hostiles . | . . . . . . . Parts Melted 14 | . 1 . 1 . 12 . Heat Transferred 3639 | . 1073 111 1160 . 1295 . Parts Sabotaged . | . . . . . . . Parts Stolen . | . . . . . . . Parts Stripped . | . . . . . . . Power Chain Reactions . | . . . . . . . Missiles Intercepted . | . . . . . . . Alert | -11 -10 -10 -9 -9 -9 -8 ------- Run | Scr Mat Min Mat Min Exi Min Peak Influence 335 | 10 261 249 335 300 . 41 Initial 130 | . 6 69 57 130 . . Average 169 | 3 113 133 224 111 . 19 Maximum Alert Level 1 | . 1 1 1 1 . . Low Security (%) 56 | 100 86 87 32 71 . 100 Level 1 43 | . 13 12 67 28 . . Level 2 . | . . . . . . . Level 3 . | . . . . . . . Level 4 . | . . . . . . . Level 5 . | . . . . . . . High Security . | . . . . . . . Max Security . | . . . . . . . Squads Dispatched 9 | . 5 . 4 . . . Investigation 3 | . 3 . . . . . Extermination . | . . . . . . . Reinforcement 6 | . 2 . 4 . . . Assault . | . . . . . . . Garrison . | . . . . . . . Intercept . | . . . . . . . Construction Impeded . | . . . . . . . Haulers Reinforced . | . . . . . . . Stealth | -11 -10 -10 -9 -9 -9 -8 --------- Run | Scr Mat Min Mat Min Exi Min Distress Signals 2 | . 1 . 1 . . . Communications Jammed . | . . . . . . . Distress Signals . | . . . . . . . Times Spotted 159 | . 26 31 61 6 32 3 Peak Tracking Total 20 | . 5 20 5 3 9 4 Tactical Retreats 10 | . 3 1 1 . 5 . Traps | -11 -10 -10 -9 -9 -9 -8 ------- Run | Scr Mat Min Mat Min Exi Min Traps Triggered 3 | . 3 . . . . . Indirectly . | . . . . . . . Trap Hack Attempts . | . . . . . . . Triggered . | . . . . . . . Disarmed . | . . . . . . . Reprogrammed . | . . . . . . . Reused . | . . . . . . . Traps Extracted . | . . . . . . . Installed . | . . . . . . . Triggered . | . . . . . . . Exploded 3 | . . . . . 3 . Machines | -11 -10 -10 -9 -9 -9 -8 ---------- Run | Scr Mat Min Mat Min Exi Min Machines Disabled 8 | . . 1 . 2 5 . Max in Single Turn 2 | . . 1 . 2 2 . Machines Sabotaged . | . . . . . . . Garrisons Compromised . | . . . . . . . Overloaded Fab Kills . | . . . . . . . Fab Network Shutdowns . | . . . . . . . Hacking | -11 -10 -10 -9 -9 -9 -8 --------- Run | Scr Mat Min Mat Min Exi Min Machines Accessed 24 | . 9 1 11 1 2 . Terminals 15 | . 7 1 6 1 . . Fabricators . | . . . . . . . Repair Stations 3 | . 1 . 2 . . . Recycling Units 3 | . 1 . 2 . . . Scanalyzers 1 | . . . 1 . . . Garrison Access . | . . . . . . . Total Hacks 125 | . 35 6 58 2 24 . Successful 80 | . 20 3 32 1 24 . Failed 43 | . 14 3 26 . . . Catastrophic 8 | . 3 1 4 . . . Database Lockouts 2 | . 1 . . 1 . . Manual 74 | . 28 6 37 2 1 . Terminals 69 | . 27 6 34 2 . . Fabricators . | . . . . . . . Repair Stations 19 | . 6 . 13 . . . Recycling Units 7 | . 2 . 5 . . . Scanalyzers 6 | . . . 6 . . . Garrison Access . | . . . . . . . Terminal Hacks 40 | . 5 3 7 1 24 . Record 23 | . . . . . 23 . Part Schematic 3 | . . 1 1 1 . . Robot Analysis 6 | . 2 2 2 . . . Level Access Points 1 | . 1 . . . . . Branch Access Points 2 | . 1 . 1 . . . Terminal Index 2 | . 1 . 1 . . . Locate Traps 1 | . . . 1 . . . Zone Layout 1 | . . . 1 . . . EX-Prototype ID Bank 1 | . . . . . 1 . Fabricator Hacks . | . . . . . . . Repair Station Hacks 14 | . 5 . 9 . . . Scan Component 8 | . 3 . 5 . . . Repair 6 | . 2 . 4 . . . Recycling Unit Hacks 3 | . 1 . 2 . . . Retrieve Components 3 | . 1 . 2 . . . Scanalyzer 6 | . . . 6 . . . Insert Component 3 | . . . 3 . . . Analyze 3 | . . . 3 . . . Garrison Access Hacks . | . . . . . . . Unauthorized Hacks 17 | . 9 . 8 . . . Terminals 15 | . 8 . 7 . . . Track 2 | . 1 . 1 . . . Assimilate 1 | . 1 . . . . . Botnet 11 | . 6 . 5 . . . Operators 1 | . . . 1 . . . Fabricators . | . . . . . . . Repair Stations . | . . . . . . . Recycling Units 2 | . 1 . 1 . . . Reject 2 | . 1 . 1 . . . Scanalyzers . | . . . . . . . Garrison Access . | . . . . . . . Data Cores Recovered . | . . . . . . . Used . | . . . . . . . Hacking Detections 20 | . 9 1 9 1 . . Full Trace Events 4 | . 4 . . . . . Feedback Events . | . . . . . . . Feedback Blocked . | . . . . . . . Robot Schematics Acquired . | . . . . . . . Robots Built . | . . . . . . . Matter . | . . . . . . . Time . | . . . . . . . Total Robot Build Rating . | . . . . . . . Part Schematics Acquired 6 | . . 1 4 1 . . Parts Built . | . . . . . . . Matter . | . . . . . . . Time . | . . . . . . . Total Part Build Rating . | . . . . . . . Parts Repaired 6 | . 2 . 4 . . . Time 174 | . 52 . 122 . . . Parts Recycled . | . . . . . . . Recycled Matter . | . . . . . . . Retrieved Matter . | . . . . . . . Retrieved Components 25 | . 6 . 19 . . . Parts Scanalyzed 3 | . . . 3 . . . Part Schematics Acquired 3 | . . . 3 . . . Parts Damaged . | . . . . . . . Bothacking | -11 -10 -10 -9 -9 -9 -8 ------------ Run | Scr Mat Min Mat Min Exi Min Used RIF Installer . | . . . . . . . Robots Hacked 4 | . . . . . 4 . Non-combat 3 | . . . . . 3 . Combat 1 | . . . . . 1 . Robot Hacks Applied 4 | . . . . . 4 . parse_system 4 | . . . . . 4 . Relay Couplers Released . | . . . . . . . Robots Rewired . | . . . . . . . Allies Hacked . | . . . . . . . Hacks Repelled . | . . . . . . . Allies | -11 -10 -10 -9 -9 -9 -8 -------- Run | Scr Mat Min Mat Min Exi Min Total Allies 2 | . . 2 . . . . Largest Group 2 | . . 2 1 . . . Highest-Rated Group 45 | . . 45 31 . . . Highest-Rated Ally 31 | . . 31 31 . . . Total Orders . | . . . . . . . Ally Attacks 11 | . . 2 9 . . . Total Damage 166 | . . 21 145 . . . Kills 1 | . . . 1 . . . Allies Corrupted . | . . . . . . . Allies Melted . | . . . . . . . Intel | -11 -10 -10 -9 -9 -9 -8 ------- Run | Scr Mat Min Mat Min Exi Min Robot Analysis Total 6 | . 2 2 2 . . . Derelict Logs Recovered 1 | . . . . 1 . . Drone Launches . | . . . . . . . Drone Recoveries . | . . . . . . . Exploration | -11 -10 -10 -9 -9 -9 -8 ------------- Run | Scr Mat Min Mat Min Exi Min Turns Passed 9566 | 71 1386 593 3529 1420 2553 14 Spaces Moved 4175 | 36 594 264 1470 683 1128 . Core 10 | 10 . . . . . . Treads 4165 | 26 594 264 1470 683 1128 . Legs . | . . . . . . . Wheels . | . . . . . . . Hover . | . . . . . . . Flight . | . . . . . . . Fastest Speed 50 | 50 160 180 180 200 160 . Average Speed 183 | 129 173 180 181 200 185 . Slowest Speed 200 | 160 200 180 200 200 200 . Overloaded Moves . | . . . . . . . Propulsion Burnouts . | . . . . . . . Robots Hopped . | . . . . . . . Cave-ins Triggered . | . . . . . . . Exploration Rate (%) 62 | 3 88 64 90 98 90 3 Regions Visited 6 Branch Regions 4 Pre-discovered Areas 3 | . . . . 2 1 . Known Exits Taken 3 | . 1 1 1 . . . Unknown Exits Taken 3 | 1 . . . 1 1 . Scrap Searched 2 | . . 1 . 1 . . Spaces Dug 29 | . 2 . 4 . . 23 Terrain Destroyed 144 | . 2 46 17 25 13 41 Melee . | . . . . . . . Projectile 9 | . 2 . 7 . . . AOE 135 | . . 46 10 25 13 41 Terrain Rammed . | . . . . . . . Walls Destroyed . | . . . . . . . Machines Disabled . | . . . . . . . Actions | -11 -10 -10 -9 -9 -9 -8 --------- Run | Scr Mat Min Mat Min Exi Min Total 5395 | 53 824 337 2020 715 1439 7 Wait 447 | . 121 10 246 13 57 . Move 4169 | 35 593 263 1469 682 1127 . Hop . | . . . . . . . Pick Up 122 | 6 18 7 44 3 44 . Fast Attach 35 | 5 5 5 11 . 9 . Attach 34 | 3 2 5 12 . 12 . Detach 17 | 1 . 3 3 . 10 . Swap 83 | . 13 9 38 5 16 2 Drop 115 | . 9 10 49 . 47 . Fire 366 | 3 63 25 145 12 113 5 Melee 4 | . . . . . 4 . Ram . | . . . . . . . Kick . | . . . . . . . Crush 3 | . . . 3 . . . Escape Stasis . | . . . . . . . Rewire . | . . . . . . . Trap . | . . . . . . . Miscellaneous . | . . . . . . . Route ------- -11/Scrapyard -10/Materials (discovered 5 exits: *Mat x3 / *Min x2) -10/Mines (discovered 2 exits: *Mat x2) -9/Materials (discovered 5 exits: *Mat x2 / *Min / *Sto x2) -9/Mines (discovered 4 exits: *Mat x2 / *Exi / [*Zio]) -9/Exiles (discovered 2 exits: [*Min x2]) -8/Mines History --------- Turn | Location | Event 32 | -11/Scrapyard | Discovered new exit (range 12) 72 | -11/Scrapyard | Entered Materials 242 | -10/Materials | Discovered new exit (range 7) 311 | -10/Materials | Build established: Mutant 437 | -10/Materials | Central database locked down 457 | -10/Materials | Discovered new exit (range 9) 635 | -10/Materials | Discovered new exit (range 9) 836 | -10/Materials | Identified exit to Mines 990 | -10/Materials | Discovered new exit (range 16) 994 | -10/Materials | Identified exit to Materials 1285 | -10/Materials | Repaired Assault Rifle 1313 | -10/Materials | Repaired Lgt. Treads 1458 | -10/Materials | Entered Mines 1599 | -10/Mines | Core integrity fell below 50% 1687 | -10/Mines | Lost 5 parts (1p2n2w) 1836 | -10/Mines | Discovered exit to Materials (range 7) 2003 | -10/Mines | Discovered exit to Materials (range 14) 2038 | -10/Mines | Assembled infested the area 2042 | -10/Mines | Core integrity fell below 20% 2051 | -10/Mines | Entered Materials 2051 | -9/Materials | Accompanied by 1 ally 2051 | -9/Materials | Evolved 2 slots: Utility x2 2056 | -9/Materials | Led the pair of lost Derelicts to an unsafe place 2229 | -9/Materials | Discovered new exit (range 5) 2324 | -9/Materials | Lost 5 parts (1p2n2w) 2445 | -9/Materials | Repaired Plasma Cutter 2472 | -9/Materials | Repaired Lgt. Assault Rifle 2567 | -9/Materials | Identified exit to Storage 2596 | -9/Materials | Build established: Scavenger-Mutant 2835 | -9/Materials | Discovered new exit (range 4) 2850 | -9/Materials | Identified exit to Materials 3900 | -9/Materials | Discovered exit to Materials (range 12) 4043 | -9/Materials | Build established: Hauler-Mutant 4149 | -9/Materials | Repaired Hvy. Assault Rifle 4182 | -9/Materials | Repaired Hvy. Assault Rifle 5092 | -9/Materials | Identified exit to Mines 5447 | -9/Materials | Core integrity fell below 50% 5580 | -9/Materials | Entered Mines 5612 | -9/Mines | Met a Derelict bent on vengeance 5752 | -9/Mines | Deemed a non-threat by the Exiles lab entrance 5752 | -9/Mines | Discovered new exit (range 5) 5831 | -9/Mines | A Derelict revealed a hidden shortcut to a safe place 5975 | -9/Mines | A weapon hastily lodged in a ceiling crevice suddenly fell to the ground 6202 | -9/Mines | Discovered exit to Materials (range 6) 6430 | -9/Mines | Learned location of Storage (-9) 6539 | -9/Mines | Discovered exit to Materials (range 6) 6599 | -9/Mines | Central database locked down 7000 | -9/Mines | Entered Exiles 7050 | -9/Exiles | Met 8R-AWN 7086 | -9/Exiles | Met EX-HEX 7218 | -9/Exiles | Met EX-DEC 7284 | -9/Exiles | Learned location of Zion (-7) 7318 | -9/Exiles | Met EX-BIN 7348 | -9/Exiles | Aligned with FarCom system 7350 | -9/Exiles | Given EX-Vault access code 7398 | -9/Exiles | Opened EX-Vault 7410 | -9/Exiles | Found Trap Reconfigurator 7453 | -9/Exiles | Warned to stay clear of 0b10 Research branches 7602 | -9/Exiles | Discovered new exit (range 10) 7991 | -9/Exiles | Attacked by the Exiles 8155 | -9/Exiles | Lost 3 parts (1u2w) 8178 | -9/Exiles | Core integrity fell below 20% 8197 | -9/Exiles | Destroyed 8R-AWN 8625 | -9/Exiles | Destroyed EX-DEC 8660 | -9/Exiles | Destroyed EX-BIN 8703 | -9/Exiles | Destroyed EX-HEX 9192 | -9/Exiles | Found System Purifier 9267 | -9/Exiles | Found Deploy-a-Sentry 9525 | -9/Exiles | Discovered new exit (range 15) 9553 | -9/Exiles | Stole two prototypes: Trap Reconfigurator, Deploy-a-Sentry 9553 | -9/Exiles | Entered Mines 9567 | -8/Mines | Destroyed by G-47 Trooper with Particle Gun Last Messages --------------- 09267_ Acquired Deploy-a-Sentry. 09270_ Acquired Adv. Core Analyzer. 09273_ Acquired Imp. Armor Integrity Analyzer. 09280_ Dropped Lrg. Storage Unit. 09281_ Acquired Imp. Target Analyzer. 09284_ Acquired Adv. Launcher Guidance Computer. 09293_ Dropped Cld. Ion Engine. 09299_ Acquired Cold Fusion Reactor. 09317_ Acquired 10 matter. 09337_ Dropped Hcp. Matter Pod. 09525_ EXIT=FOUND A strange signal echoes through the mines. LOCATION=UNKNOWN GOAL=ESCAPE 09554_ C-30 ARC bursts open, deploying its payload. 09554_ G-50 Soldier unfolds itself. 09554_ G-47 Trooper unfolds itself. 09559_ Destroyed Hvy. Laser. 09564_ G-47 Trooper destroyed. 09566_ The unstable cave ceiling collapses. Map ----- +----------------------------------------------------+ | ??????????????????????????????????? | | ??????????????????????????????????? | | ??????????????????????????????????? | | ??????????????????????????????????? | | ??????????????????????????????????? | | ??????????????????????????????????? | | ??????????????????????????????????? | | ??????????????????????????????????? | | ??????????????????????????????????? | | ??????????????????????????????????? | | ??????????????????????????????????? | | ??????????????????????????????????? | | ??????????????????????????????????? | | ??????????????????????????????????? | | ??????????????????????????????????? | | ??????????????????????????????????? | | ??????????????????????????????????? | | ??????????????????????????????????? | | ??????????????????????????????????? | | ???????????????????#####??????????? | | ?????????????????### #???????#?? | | ????????????????## ????? #?? | | ????????????????# ???? #??? | | ?????????????????## g###g #???? | | ?????????????????# %% #???? | | ?????????????????# @ #???? | | ??????????????# ### #???? | | ??????????????#### #???????? | | ?????????????????## # ###???????? | | ??????????????????## #??????????? | | ???????????????????####???????????? | | ??????????????????????????????????? | | ??????????????????????????????????? | | ??????????????????????????????????? | | ??????????????????????????????????? | | ??????????????????????????????????? | | ??????????????????????????????????? | | ??????????????????????????????????? | | ??????????????????????????????????? | | ??????????????????????????????????? | | ??????????????????????????????????? | | ??????????????????????????????????? | | ??????????????????????????????????? | | ??????????????????????????????????? | | ??????????????????????????????????? | | ??????????????????????????????????? | | ??????????????????????????????????? | | ??????????????????????????????????? | | ??????????????????????????????????? | | ??????????????????????????????????? | +----------------------------------------------------+ Best States ------------- Heat Dissipation 28 Energy Generation 18 Energy Capacity 280 Matter Stores 324 Matter Capacity 500 Sight Range 16 Terrain Scan Density 10 Armor Coverage 150 Resistance: EM 15 Propulsion Shielding 66 Weapon Shielding 33 Weapon Cycling 25 Evasion (%) 40 Targeting Accuracy 6 Recoil Reduction 2 Offensive Hacking 10 Item Schematics ----------------- Hcp. Storage Unit | -10/Mines | Hacked Imp. Flight Unit | -9/Materials | Scanalyzed System Shield | -9/Materials | Scanalyzed Plasma Cutter | -9/Materials | Scanalyzed Lrg. Storage Unit | -9/Materials | Hacked Med. Storage Unit | -9/Mines | Hacked Robot Schematics ------------------ None Fabricated ------------ Nothing Alien Tech Used ----------------- None Achievements -------------- None Challenges ------------ None Game ------ Seed RefineryFluxStabilizer Manual? 0 Play Time 01:10:09 Cumulative 206.0 hours Start 2021.01.14 @ 11:36:46 End 2021.01.14 @ 17:25:45 Sessions 3 Manual Loads 0 Difficulty Rogue Special Mode None Game No. 190 Rogue 190 Adventurer 0 Explorer 0 Win Type - Total 0 Types 0/0/0/0/0/0/0/0/0 Lore% 59 Gallery% 69 Achievement% 54 Wizard Run 0 Options --------- ASCII 0 Keyboard 1 Movement Numpad Keybinds 0 Fullscreen 1 Font 12/Terminus Map View 83x54 Tactical HUD 1 Map Filters NONE Filters NONE Steam 1 RUN: 1f4fbea9-4fc5-434b-a4c2-864079d4a0a7